fUST/lending_fUST_20250816
["ID","MTS","AMOUNT","RATE_DAILY","PERIOD"]
[379522090,1755321044697,-480.0,0.00021917,3]
[379522092,1755321044707,-150.74041562,0.00021917,3]
[379522094,1755321044716,-480.0,0.00021917,3]
[379522096,1755321044726,-480.0,0.00021917,3]
[379522098,1755321044735,-480.0,0.00021917,3]
[379522100,1755321044744,-460.0,0.00021917,3]
[379522102,1755321044753,-688.73,0.00021917,3]
[379522104,1755321044763,-750.31,0.00021917,3]
[379522106,1755321044772,-480.0,0.00021917,3]
[379522108,1755321044781,-151.0,0.00021917,2]
[379522110,1755321044790,-480.0,0.00021917,3]
[379522112,1755321044799,-151.0,0.00021917,2]
[379522114,1755321044809,-200.30039571,0.00021917,3]
[379522115,1755321044818,-480.0,0.00021917,3]
[379522117,1755321044827,-480.0,0.00021917,3]
[379522119,1755321044836,-480.0,0.00021917,3]
[379522121,1755321044846,-480.0,0.00021917,3]
[379522123,1755321044855,-480.0,0.00021917,3]
[379522125,1755321044864,-480.0,0.00021917,3]
[379522127,1755321044874,-151.0,0.00021917,2]
[379522129,1755321044883,-471.08329567,0.00021917,3]
[379522131,1755321044892,-500.0,0.00021917,3]
[379522133,1755321044902,-500.0,0.00021917,3]
[379522135,1755321044911,-480.0,0.00021917,3]
[379522136,1755321044920,-460.45368327,0.00021917,3]
[379522138,1755321044929,-647.63,0.00021917,3]
[379522140,1755321044938,-480.0,0.00021917,3]
[379522142,1755321044947,-331.18271432,0.00021917,3]
[379522144,1755321044957,-480.0,0.00021917,3]
[379522146,1755321044966,-480.0,0.00021917,3]
[379522148,1755321044975,-460.0,0.00021917,3]
[379522150,1755321044984,-460.0,0.00021917,3]
[379522152,1755321044996,-480.0,0.00021917,3]
[379522154,1755321045005,-460.0,0.00021917,3]
[379522156,1755321045014,-2276.91,0.00021917,3]
[379522158,1755321045023,-480.0,0.00021917,3]
[379522160,1755321045032,-460.0,0.00021917,3]
[379522161,1755321045041,-480.0,0.00021917,3]
[379522163,1755321045051,-480.0,0.00021917,3]
[379522165,1755321045060,-480.0,0.00021917,3]
[379522167,1755321045069,-460.0,0.00021917,3]
[379522169,1755321045078,-480.0,0.00021917,3]
[379522171,1755321045087,-480.0,0.00021917,3]
[379522173,1755321045096,-480.0,0.00021917,3]
[379522175,1755321045105,-1515.34,0.00021917,3]
[379522177,1755321045115,-480.0,0.00021917,3]
[379522179,1755321045124,-500.0,0.00021917,3]
[379522181,1755321045133,-506.71098924,0.00021917,3]
[379522183,1755321045142,-480.0,0.00021917,3]
[379522185,1755321045152,-480.0,0.00021917,3]
[379522186,1755321045161,-480.0,0.00021917,3]
[379522188,1755321045170,-480.0,0.00021917,3]
[379522190,1755321045178,-480.0,0.00021917,3]
[379522192,1755321045188,-480.0,0.00021917,3]
[379522194,1755321045197,-480.0,0.00021917,3]
[379522196,1755321045206,-480.0,0.00021917,3]
[379522198,1755321045215,-480.0,0.00021917,3]
[379522200,1755321045224,-480.0,0.00021917,3]
[379522201,1755321045234,-467.36921939,0.00021917,3]
[379522203,1755321045246,-480.0,0.00021917,3]
[379522205,1755321045256,-480.0,0.00021917,3]
[379522207,1755321045265,-480.0,0.00021917,3]
[379522209,1755321045274,-842.25,0.00021917,3]
[379522211,1755321045283,-480.0,0.00021917,3]
[379522213,1755321045293,-480.0,0.00021917,3]
[379522215,1755321045302,-480.0,0.00021917,3]
[379522217,1755321045311,-1045.92,0.00021917,3]
[379522218,1755321045320,-480.0,0.00021917,3]
[379522220,1755321045330,-2165.56,0.00021917,3]
[379522222,1755321045342,-761.6,0.00021917,3]
[379522224,1755321045350,-221.99262623,0.00021917,3]
[379522226,1755321045359,-480.0,0.00021917,3]
[379522228,1755321045368,-480.0,0.00021917,3]
[379522230,1755321045377,-461.23403783,0.00021917,3]
[379522232,1755321045386,-460.0,0.00021917,3]
[379522234,1755321045395,-480.0,0.00021917,3]
[379522235,1755321045404,-480.0,0.00021917,3]
[379522237,1755321045415,-621.7862716,0.00021917,3]
[379522239,1755321045425,-480.0,0.00021917,3]
[379522241,1755321045435,-480.0,0.00021917,3]
[379522243,1755321045444,-882.88,0.00021917,3]
[379522245,1755321045453,-480.0,0.00021917,3]
[379522247,1755321045462,-501.7,0.00021917,3]
[379522249,1755321045471,-500.0,0.00021917,3]
[379522251,1755321045480,-500.0,0.00021917,3]
[379522253,1755321045489,-500.0,0.00021917,3]
[379522255,1755321045498,-480.0,0.00021917,3]
[379522257,1755321045506,-500.0,0.00021917,3]
[379522258,1755321045515,-500.0,0.00021917,3]
[379522260,1755321045525,-198.73778718,0.00021917,3]
[379522262,1755321045535,-480.0,0.00021917,3]
[379522264,1755321045544,-460.0,0.00021917,3]
[379522266,1755321045553,-461.25430514,0.00021917,3]
[379522268,1755321045562,-480.0,0.00021917,3]
[379522270,1755321045571,-480.0,0.00021917,3]
[379522272,1755321045580,-480.0,0.00021917,3]
[379522274,1755321045589,-738.72,0.00021917,3]
[379522275,1755321045599,-480.0,0.00021917,3]
[379522277,1755321045608,-480.0,0.00021917,3]
[379522279,1755321045618,-460.19422475,0.00021917,3]
[379522281,1755321045627,-460.0,0.00021917,3]
[379522283,1755321045637,-466.6546454,0.00021917,3]
[379522285,1755321045647,-460.0,0.00021917,3]
[379522287,1755321045655,-480.0,0.00021917,3]
[379522289,1755321045665,-480.0,0.00021917,3]
[379522291,1755321045673,-463.92673994,0.00021917,3]
[379522293,1755321045683,-480.0,0.00021917,3]
[379522294,1755321045691,-480.0,0.00021917,3]
[379522296,1755321045700,-480.0,0.00021917,3]
[379522298,1755321045710,-460.0,0.00021917,3]
[379522300,1755321045720,-480.0,0.00021917,3]
[379522302,1755321045729,-232.9406005,0.00021917,3]
[379522304,1755321045738,-480.0,0.00021917,3]
[379522306,1755321045748,-571.85509771,0.00021932,2]
[379522308,1755321045758,-546.60600325,0.00021954,2]
[379522310,1755321045767,-500.0,0.00021973,2]
[379522312,1755321045776,-501.23152814,0.00021973,2]
[379522313,1755321045786,-200.6271509,0.00021973,2]
[379522315,1755321045796,-500.0,0.00021973,2]
[379522317,1755321045806,-251.21384387,0.00021973,2]
[379522319,1755321045816,-501.07154949,0.00021973,2]
[379522321,1755321045826,-500.0,0.00021973,2]
[379522323,1755321045836,-394.81687463,0.00021973,2]
[379522325,1755321045846,-315.70916756,0.00021973,2]
[379522327,1755321045855,-501.63048424,0.00021973,2]
[379522329,1755321045865,-171.89024286,0.00021973,2]
[379522331,1755321045874,-500.0,0.00021973,2]
[379522333,1755321045883,-500.0,0.00021973,2]
[379522335,1755321045893,-500.0,0.00021973,2]
[379522337,1755321045903,-500.0,0.00021973,2]
[379522339,1755321045912,-500.0,0.00021973,2]
[379522341,1755321045922,-500.0,0.00021973,2]
[379522343,1755321045931,-151.0,0.00021973,7]
[379522345,1755321045941,-151.0,0.00021973,7]
[379522346,1755321045951,-151.0,0.00021973,7]
[379522348,1755321045960,-439.695698,0.00021973,7]
[379522350,1755321045970,-439.695698,0.00021973,7]
[379522352,1755321045980,-1000.0,0.00021973,2]
[379522354,1755321045991,-380.000408,0.00021973,2]
[379522356,1755321046000,-359.02968,0.00021977,7]
[379522358,1755321046010,-359.02968,0.00021977,7]
[379522360,1755321046019,-151.0,0.0002199,7]
[379522362,1755321046029,-151.0,0.0002199,7]
[379522364,1755321046039,-151.0,0.0002199,7]
[379522366,1755321046050,-151.0,0.0002199,7]
[379522368,1755321046061,-471.735705,0.0002199,7]
[379522370,1755321046071,-471.735705,0.0002199,7]
[379522372,1755321046081,-225.488453,0.0002199,7]
[379522374,1755321046090,-151.0,0.0002199,7]
[379522376,1755321046100,-225.488453,0.0002199,7]
[379522378,1755321046109,-151.0,0.0002199,7]
[379522380,1755321046119,-151.0,0.0002199,7]
[379522382,1755321046129,-151.0,0.0002199,7]
[379522384,1755321046138,-151.0,0.0002199,7]
[379522386,1755321046148,-151.0,0.0002199,7]
[379522388,1755321046157,-151.0,0.0002199,7]
[379522390,1755321046167,-2225.198077,0.0002199,7]
[379522391,1755321046176,-2225.198077,0.0002199,7]
[379522393,1755321046186,-172.477039,0.0002199,7]
[379522395,1755321046195,-439.695698,0.0002199,7]
[379522397,1755321046205,-172.477039,0.0002199,7]
[379522399,1755321046214,-439.695698,0.0002199,7]
[379522401,1755321046225,-151.0,0.0002199,7]
[379522403,1755321046235,-151.0,0.0002199,7]
[379522405,1755321046249,-151.0,0.0002199,7]
[379522407,1755321046258,-433.422319,0.0002199,7]
[379522409,1755321046268,-433.422319,0.0002199,7]
[379522411,1755321046277,-151.0,0.0002199,7]
[379522413,1755321046288,-359.02968,0.0002199,7]
[379522415,1755321046298,-359.02968,0.0002199,7]
[379522417,1755321046307,-151.0,0.0002199,7]
[379522419,1755321046316,-151.0,0.0002199,7]
[379522421,1755321046326,-151.0,0.0002199,7]
[379522423,1755321046336,-556.586596,0.0002199,7]
[379522425,1755321046345,-556.586596,0.0002199,7]
[379522426,1755321046354,-181.920559,0.0002199,7]
[379522428,1755321046363,-152.298776,0.0002199,7]
[379522430,1755321046373,-100000.0,0.0002199,2]
[379522432,1755321046382,-991.35488865,0.00022039,2]
[379522434,1755321046392,-546.60600325,0.00022091,2]
[379522436,1755321046401,-1500.0,0.00022092,2]
[379522438,1755321046411,-500.0,0.00022132,2]
[379522439,1755321046420,-168.0,0.00022143,2]
[379522440,1755321046430,-501.53381623,0.00022173,7]
[379522441,1755321046439,-552.91855651,0.00022173,2]
[379522442,1755321046449,-500.0,0.00022173,2]
[379522443,1755321046459,-204.42571016,0.00022173,2]
[379522444,1755321046469,-500.63349668,0.00022173,2]
[379522445,1755321046479,-501.08647519,0.00022173,2]
[379522446,1755321046488,-500.61538102,0.00022173,2]
[379522447,1755321046498,-500.88288351,0.00022173,2]
[379522448,1755321046508,-500.79455243,0.00022173,2]
[379522449,1755321046518,-501.12546263,0.00022173,2]
[379522450,1755321046530,-187.01279824,0.00022173,2]
[379522451,1755321046540,-500.0,0.00022173,2]
[379522452,1755321046550,-500.86841549,0.00022173,2]
[379522453,1755321046560,-500.0,0.00022173,2]
[379522454,1755321046571,-500.0,0.00022173,2]
[379522455,1755321046580,-258.63015784,0.00022173,2]
[379522456,1755321046590,-500.0,0.00022173,2]
[379522457,1755321046600,-500.0,0.00022173,2]
[379522458,1755321046609,-160.1795047,0.00022173,2]
[379522459,1755321046620,-500.0,0.00022173,2]
[379522460,1755321046630,-160.19341932,0.00022173,2]
[379522461,1755321046639,-500.0,0.00022173,2]
[379522462,1755321046649,-500.0,0.00022173,2]
[379522463,1755321046658,-501.05062111,0.00022173,2]
[379522464,1755321046668,-500.53606696,0.00022173,2]
[379522465,1755321046677,-501.50738922,0.00022173,2]
[379522466,1755321046687,-500.45994459,0.00022173,2]
[379522467,1755321046697,-445.47381245,0.00022173,2]
[379522468,1755321046707,-500.96625021,0.00022173,2]
[379522469,1755321046717,-500.50306476,0.00022173,2]
[379522470,1755321046726,-411.78390383,0.00022173,2]
[379522471,1755321046736,-309.50605196,0.00022173,2]
[379522472,1755321046745,-160.17413587,0.00022173,2]
[379522473,1755321046754,-500.0,0.00022173,2]
[379522474,1755321046764,-258.59425367,0.00022173,2]
[379522475,1755321046774,-500.0,0.00022173,2]
[379522476,1755321046783,-158.5737766,0.00022173,2]
[379522477,1755321046793,-500.0,0.00022173,2]
[379522478,1755321046803,-500.0,0.00022173,2]
[379522479,1755321046813,-502.46193111,0.00022173,2]
[379522480,1755321046822,-527.21987718,0.00022173,2]
[379522481,1755321046832,-500.0,0.00022173,2]
[379522482,1755321046842,-500.0,0.00022173,2]
[379522483,1755321046851,-349.32952212,0.00022173,2]
[379522484,1755321046861,-500.0,0.00022173,2]
[379522485,1755321046871,-229.09553761,0.00022173,2]
[379522486,1755321046881,-500.0,0.00022173,2]
[379522487,1755321046890,-500.0,0.00022173,2]
[379522488,1755321046900,-181.22071922,0.00022173,2]
[379522489,1755321046909,-158.17436971,0.00022173,2]
[379522491,1755321046919,-185.40567064,0.00022173,2]
[379522492,1755321046928,-158.59369277,0.00022173,2]
[379522493,1755321046937,-500.0,0.00022173,2]
[379522495,1755321046947,-158.59536301,0.00022173,2]
[379522496,1755321046956,-160.19486636,0.00022173,2]
[379522498,1755321046966,-340.78895571,0.00022173,2]
[379522501,1755321046975,-258.61786805,0.00022173,2]
[379522503,1755321046985,-158.59094384,0.00022173,2]
[379522505,1755321046996,-258.66738447,0.00022173,2]
[379522507,1755321047006,-160.59440935,0.00022173,2]
[379522509,1755321047015,-160.59508238,0.00022173,2]
[379522511,1755321047025,-157.16732525,0.00022173,2]
[379522513,1755321047034,-261.37303828,0.00022173,2]
[379522515,1755321047043,-500.0,0.00022173,2]
[379522517,1755321047052,-500.0,0.00022173,2]
[379522519,1755321047062,-500.0,0.00022173,2]
[379522521,1755321047072,-341.19863685,0.00022173,2]
[379522523,1755321047082,-160.18977761,0.00022173,2]
[379522525,1755321047092,-160.19255921,0.00022173,2]
[379522527,1755321047101,-160.59564343,0.00022173,2]
[379522529,1755321047113,-158.58749088,0.00022173,2]
[379522531,1755321047124,-258.62627597,0.00022173,2]
[379522533,1755321047135,-248.69501119,0.00022173,2]
[379522535,1755321047145,-500.98467526,0.00022173,2]
[379522537,1755321047155,-500.0,0.00022173,2]
[379522539,1755321047165,-504.38691554,0.00022173,2]
[379522541,1755321047175,-501.49764947,0.00022173,2]
[379522543,1755321047184,-500.0,0.00022173,2]
[379522545,1755321047195,-500.0,0.00022173,2]
[379522547,1755321047205,-500.0,0.00022173,2]
[379522549,1755321047214,-500.0,0.00022173,2]
[379522551,1755321047224,-500.0,0.00022173,2]
[379522553,1755321047233,-151.0,0.00022173,7]
[379522555,1755321047245,-151.0,0.00022191,7]
[379522557,1755321047256,-440.0,0.00022191,3]
[379522559,1755321047266,-442.64805231,0.00022191,3]
[379522560,1755321047275,-440.0,0.00022191,3]
[379522563,1755321047287,-440.0,0.00022191,3]
[379522565,1755321047297,-440.0,0.00022191,3]
[379522566,1755321047307,-151.0,0.00022191,7]
[379522569,1755321047318,-151.0,0.00022191,7]
[379522570,1755321047330,-480.0,0.00022191,3]
[379522572,1755321047342,-480.0,0.00022191,3]
[379522575,1755321047354,-480.0,0.00022191,3]
[379522576,1755321047365,-440.0,0.00022191,3]
[379522579,1755321047376,-480.0,0.00022191,3]
[379522580,1755321047386,-480.0,0.00022191,3]
[379522582,1755321047396,-420.0,0.00022191,3]
[379522584,1755321047406,-480.0,0.00022191,3]
[379522586,1755321047416,-480.0,0.00022191,3]
[379522588,1755321047426,-480.0,0.00022191,3]
[379522590,1755321047436,-480.0,0.00022191,3]
[379522593,1755321047448,-440.57075349,0.00022191,3]
[379522595,1755321047459,-480.0,0.00022191,3]
[379522597,1755321047469,-480.0,0.00022191,3]
[379522599,1755321047479,-480.0,0.00022191,3]
[379522601,1755321047489,-480.0,0.00022191,3]
[379522603,1755321047499,-441.64877552,0.00022191,3]
[379522605,1755321047508,-586.09637653,0.00022191,3]
[379522607,1755321047517,-480.0,0.00022191,3]
[379522609,1755321047527,-270.85273804,0.00022191,3]
[379522611,1755321047537,-480.0,0.00022191,3]
[379522613,1755321047547,-151.0,0.00022191,7]
[379522615,1755321047557,-151.0,0.00022191,7]
[379522617,1755321047567,-480.0,0.00022191,3]
[379522619,1755321047577,-151.0,0.00022191,7]
[379522621,1755321047586,-480.0,0.00022191,3]
[379522623,1755321047596,-151.0,0.00022191,7]
[379522625,1755321047606,-151.0,0.00022191,7]
[379522627,1755321047616,-151.0,0.00022191,7]
[379522629,1755321047626,-202.19683561,0.00022191,3]
[379522631,1755321047636,-480.0,0.00022191,3]
[379522633,1755321047645,-480.0,0.00022191,3]
[379522635,1755321047655,-480.0,0.00022191,3]
[379522637,1755321047665,-480.0,0.00022191,3]
[379522639,1755321047675,-500.0,0.00022191,3]
[379522641,1755321047684,-480.0,0.00022191,3]
[379522643,1755321047695,-151.0,0.00022191,7]
[379522645,1755321047705,-151.0,0.00022191,7]
[379522647,1755321047715,-480.0,0.00022191,3]
[379522649,1755321047725,-480.0,0.00022191,3]
[379522651,1755321047734,-480.0,0.00022191,3]
[379522653,1755321047745,-480.0,0.00022191,3]
[379522655,1755321047755,-480.0,0.00022191,3]
[379522657,1755321047764,-169.573509,0.00022191,7]
[379522659,1755321047774,-480.0,0.00022191,3]
[379522661,1755321047784,-480.0,0.00022191,3]
[379522663,1755321047794,-151.0,0.00022191,7]
[379522665,1755321047804,-151.0,0.00022191,7]
[379522667,1755321047814,-169.573509,0.00022191,7]
[379522669,1755321047824,-480.0,0.00022191,3]
[379522671,1755321047834,-480.0,0.00022191,3]
[379522673,1755321047843,-271.91754933,0.00022191,3]
[379522675,1755321047854,-1098.069024,0.00022191,7]
[379522677,1755321047864,-1098.069024,0.00022191,7]
[379522679,1755321047873,-480.0,0.00022191,3]
[379522681,1755321047883,-1098.069024,0.00022191,7]
[379522683,1755321047894,-1098.069024,0.00022191,7]
[379522685,1755321047903,-480.0,0.00022191,3]
[379522687,1755321047913,-480.0,0.00022191,3]
[379522689,1755321047923,-480.0,0.00022191,3]
[379522691,1755321047932,-480.0,0.00022191,3]
[379522693,1755321047942,-456.62511952,0.00022191,3]
[379522695,1755321047952,-440.68403278,0.00022191,3]
[379522697,1755321047962,-440.0,0.00022191,3]
[379522714,1755321047972,-480.0,0.00022191,3]
[379522716,1755321048125,-441.63691744,0.00022191,3]
[379522718,1755321048134,-440.0,0.00022191,3]
[379522720,1755321048144,-480.0,0.00022191,3]
[379522722,1755321048154,-480.0,0.00022191,3]
[379522724,1755321048163,-151.0,0.00022191,7]
[379522726,1755321048173,-151.0,0.00022191,7]
[379522728,1755321048184,-480.0,0.00022191,3]
[379522730,1755321048194,-480.0,0.00022191,3]
[379522732,1755321048204,-440.0,0.00022191,3]
[379522734,1755321048214,-480.0,0.00022191,3]
[379522736,1755321048224,-480.0,0.00022191,3]
[379522738,1755321048234,-480.0,0.00022191,3]
[379522740,1755321048245,-480.0,0.00022191,3]
[379522741,1755321048261,-480.0,0.00022191,3]
[379522743,1755321048270,-480.0,0.00022191,3]
[379522745,1755321048280,-480.0,0.00022191,3]
[379522747,1755321048291,-480.0,0.00022191,3]
[379522749,1755321048303,-168.85132765,0.00022191,3]
[379522751,1755321048312,-480.0,0.00022191,3]
[379522753,1755321048322,-553.31,0.00022191,3]
[379522755,1755321048332,-480.0,0.00022191,3]
[379522757,1755321048342,-440.0,0.00022191,3]
[379522759,1755321048351,-480.0,0.00022191,3]
[379522761,1755321048361,-480.0,0.00022191,3]
[379522763,1755321048371,-440.0,0.00022191,3]
[379522765,1755321048380,-480.0,0.00022191,3]
[379522767,1755321048389,-151.0,0.00022191,7]
[379522769,1755321048398,-440.0,0.00022191,3]
[379522771,1755321048408,-480.0,0.00022191,3]
[379522773,1755321048417,-440.0,0.00022191,3]
[379522775,1755321048426,-480.0,0.00022191,3]
[379522777,1755321048436,-480.0,0.00022191,3]
[379522779,1755321048445,-480.0,0.00022191,3]
[379522781,1755321048454,-440.0,0.00022191,3]
[379522783,1755321048464,-480.0,0.00022191,3]
[379522785,1755321048474,-480.0,0.00022191,3]
[379522787,1755321048484,-480.0,0.00022191,3]
[379522788,1755321048494,-480.0,0.00022191,3]
[379522790,1755321048503,-440.0,0.00022191,3]
[379522792,1755321048513,-480.0,0.00022191,3]
[379522794,1755321048522,-471.735705,0.00022191,7]
[379522796,1755321048532,-471.735705,0.00022191,7]
[379522798,1755321048541,-480.0,0.00022191,3]
[379522800,1755321048551,-471.735705,0.00022191,7]
[379522802,1755321048561,-471.735705,0.00022191,7]
[379522804,1755321048570,-480.0,0.00022191,3]
[379522806,1755321048579,-440.0,0.00022191,3]
[379522808,1755321048590,-480.0,0.00022191,3]
[379522810,1755321048600,-480.0,0.00022191,3]
[379522812,1755321048610,-480.0,0.00022191,3]
[379522814,1755321048619,-440.0,0.00022191,3]
[379522816,1755321048629,-480.0,0.00022191,3]
[379522818,1755321048639,-480.0,0.00022191,3]
[379522820,1755321048648,-480.0,0.00022191,3]
[379522822,1755321048657,-480.0,0.00022191,3]
[379522824,1755321048667,-440.0,0.00022191,3]
[379522826,1755321048679,-480.0,0.00022191,3]
[379522828,1755321048694,-480.0,0.00022191,3]
[379522830,1755321048703,-480.0,0.00022191,3]
[379522832,1755321048714,-440.0,0.00022191,3]
[379522834,1755321048723,-445.93519829,0.00022191,3]
[379522836,1755321048733,-480.0,0.00022191,3]
[379522838,1755321048742,-480.0,0.00022191,3]
[379522840,1755321048752,-480.0,0.00022191,3]
[379522842,1755321048762,-480.0,0.00022191,3]
[379522844,1755321048771,-480.0,0.00022191,3]
[379522846,1755321048781,-480.0,0.00022191,3]
[379522848,1755321048791,-480.0,0.00022191,3]
[379522850,1755321048801,-440.0,0.00022191,3]
[379522852,1755321048814,-225.488453,0.00022191,7]
[379522854,1755321048823,-480.0,0.00022191,3]
[379522856,1755321048833,-480.0,0.00022191,3]
[379522858,1755321048843,-225.488453,0.00022191,7]
[379522860,1755321048852,-480.0,0.00022191,3]
[379522862,1755321048862,-151.0,0.00022191,7]
[379522864,1755321048871,-151.0,0.00022191,7]
[379522866,1755321048881,-151.0,0.00022191,7]
[379522868,1755321048891,-225.488453,0.00022191,7]
[379522870,1755321048900,-225.488453,0.00022191,7]
[379522872,1755321048909,-480.0,0.00022191,3]
[379522874,1755321048919,-480.0,0.00022191,3]
[379522876,1755321048928,-480.0,0.00022191,3]
[379522878,1755321048937,-480.0,0.00022191,3]
[379522880,1755321048946,-440.0,0.00022191,3]
[379522882,1755321048955,-577.91810537,0.00022191,3]
[379522884,1755321048965,-480.0,0.00022191,3]
[379522886,1755321048974,-480.0,0.00022191,3]
[379522888,1755321048983,-480.0,0.00022191,3]
[379522890,1755321048993,-480.0,0.00022191,3]
[379522892,1755321049002,-1758.86,0.00022191,3]
[379522894,1755321049012,-499.24060226,0.00022191,3]
[379522896,1755321049022,-480.0,0.00022191,3]
[379522898,1755321049031,-480.0,0.00022191,3]
[379522900,1755321049041,-480.0,0.00022191,3]
[379522902,1755321049051,-480.0,0.00022191,3]
[379522904,1755321049060,-440.0,0.00022191,3]
[379522906,1755321049070,-440.0,0.00022191,3]
[379522908,1755321049079,-480.0,0.00022191,3]
[379522910,1755321049089,-480.0,0.00022191,3]
[379522912,1755321049098,-480.0,0.00022191,3]
[379522914,1755321049107,-440.0,0.00022191,3]
[379522916,1755321049117,-480.0,0.00022191,3]
[379522918,1755321049126,-480.0,0.00022191,3]
[379522920,1755321049136,-480.0,0.00022191,3]
[379522922,1755321049145,-480.0,0.00022191,3]
[379522924,1755321049155,-440.0,0.00022191,3]
[379522926,1755321049164,-443.58735649,0.00022191,3]
[379522928,1755321049174,-480.0,0.00022191,3]
[379522930,1755321049183,-440.0,0.00022191,3]
[379522932,1755321049193,-480.0,0.00022191,3]
[379522934,1755321049203,-480.0,0.00022191,3]
[379522936,1755321049212,-480.0,0.00022191,3]
[379522938,1755321049223,-440.0,0.00022191,3]
[379522940,1755321049232,-799.67,0.00022191,3]
[379522942,1755321049242,-194.31492978,0.00022191,3]
[379522944,1755321049255,-480.0,0.00022191,3]
[379522946,1755321049264,-480.0,0.00022191,3]
[379522948,1755321049274,-480.0,0.00022191,3]
[379522950,1755321049283,-480.0,0.00022191,3]
[379522952,1755321049295,-440.0,0.00022191,3]
[379522954,1755321049304,-480.0,0.00022191,3]
[379522956,1755321049314,-151.0,0.00022191,7]
[379522958,1755321049323,-156.346235,0.00022191,7]
[379522960,1755321049334,-440.0,0.00022191,3]
[379522962,1755321049344,-151.0,0.00022191,7]
[379522964,1755321049353,-151.0,0.00022191,7]
[379522965,1755321049362,-151.0,0.00022191,7]
[379522966,1755321049371,-440.0,0.00022191,3]
[379522967,1755321049380,-151.0,0.00022191,7]
[379522968,1755321049389,-480.0,0.00022191,3]
[379522969,1755321049398,-151.374564,0.00022191,7]
[379522970,1755321049407,-440.0,0.00022191,3]
[379522971,1755321049417,-480.0,0.00022191,3]
[379522972,1755321049426,-480.0,0.00022191,3]
[379522973,1755321049435,-440.0,0.00022191,3]
[379522974,1755321049444,-480.0,0.00022191,3]
[379522975,1755321049454,-480.0,0.00022191,3]
[379522976,1755321049463,-480.0,0.00022191,3]
[379522978,1755321049472,-440.0,0.00022191,3]
[379522980,1755321049481,-480.0,0.00022191,3]
[379522982,1755321049491,-480.0,0.00022191,3]
[379522984,1755321049500,-440.0,0.00022191,3]
[379522986,1755321049509,-480.0,0.00022191,3]
[379522988,1755321049519,-480.0,0.00022191,3]
[379522990,1755321049528,-480.0,0.00022191,3]
[379522992,1755321049537,-480.0,0.00022191,3]
[379522994,1755321049547,-480.0,0.00022191,3]
[379522996,1755321049556,-440.0,0.00022191,3]
[379522998,1755321049565,-480.0,0.00022191,3]
[379523000,1755321049574,-480.0,0.00022191,3]
[379523002,1755321049583,-480.0,0.00022191,3]
[379523004,1755321049593,-480.0,0.00022191,3]
[379523006,1755321049602,-480.0,0.00022191,3]
[379523008,1755321049611,-480.0,0.00022191,3]
[379523010,1755321049620,-480.0,0.00022191,3]
[379523012,1755321049630,-480.0,0.00022191,3]
[379523014,1755321049639,-440.0,0.00022191,3]
[379523016,1755321049649,-480.0,0.00022191,3]
[379523018,1755321049659,-440.0,0.00022191,3]
[379523020,1755321049668,-440.0,0.00022191,3]
[379523022,1755321049677,-480.0,0.00022191,3]